fUSD/lending_fUSD_20240105
["ID","MTS","AMOUNT","RATE_DAILY","PERIOD"]
[310318625,1704471184839,-500.0,0.00033698,3]
[310318626,1704471184849,-500.0,0.00033698,3]
[310318627,1704471184858,-774.96,0.00033698,3]
[310318628,1704471184867,-822.37,0.00033698,3]
[310318629,1704471184878,-500.0,0.00033698,3]
[310318630,1704471184887,-500.0,0.00033698,3]
[310318631,1704471184897,-394.52701192,0.00033698,3]
[310318632,1704471184907,-389.97,0.00033698,3]
[310318633,1704471184916,-1372.88,0.00033698,3]
[310318634,1704471184926,-541.67,0.00033698,3]
[310318635,1704471184935,-753.94,0.00033698,3]
[310318636,1704471184945,-365.71329093,0.00033698,3]
[310318637,1704471184954,-653.2,0.00033698,3]
[310318638,1704471184963,-515.93,0.00033698,3]
[310318639,1704471184973,-500.0,0.00033698,3]
[310318640,1704471184983,-1253.1,0.00033698,3]
[310318641,1704471184993,-500.0,0.00033698,3]
[310318642,1704471185003,-1238.19,0.00033698,3]
[310318643,1704471185013,-772.08,0.00033698,3]
[310318644,1704471185024,-500.0,0.00033698,3]
[310318645,1704471185035,-727.02,0.00033698,3]
[310318646,1704471185046,-500.0,0.00033698,3]
[310318647,1704471185056,-947.64,0.00033698,3]
[310318648,1704471185065,-500.0,0.00033698,3]
[310318649,1704471185075,-644.36,0.00033698,3]
[310318650,1704471185085,-695.57,0.00033698,3]
[310318651,1704471185095,-662.68,0.00033698,3]
[310318652,1704471185105,-500.0,0.00033698,3]
[310318653,1704471185115,-500.0,0.00033698,3]
[310318654,1704471185126,-500.0,0.00033698,3]
[310318655,1704471185135,-593.53355766,0.00033698,3]
[310318656,1704471185145,-606.21,0.00033698,3]
[310318657,1704471185156,-243.7224832,0.00033698,3]
[310318658,1704471185166,-500.0,0.00033698,3]
[310318659,1704471185175,-1236.18,0.00033698,3]
[310318660,1704471185185,-500.0,0.00033698,3]
[310318661,1704471185195,-500.0,0.00033698,3]
[310318662,1704471185205,-947.15,0.00033698,3]
[310318663,1704471185215,-500.0,0.00033698,3]
[310318664,1704471185225,-500.59,0.00033698,3]
[310318665,1704471185234,-545.24,0.00033698,3]
[310318666,1704471185244,-625.62,0.00033698,3]
[310318667,1704471185254,-637.82,0.00033698,3]
[310318668,1704471185263,-530.66,0.00033698,3]
[310318669,1704471185273,-500.0,0.00033698,3]
[310318670,1704471185284,-500.0,0.00033698,3]
[310318671,1704471185293,-500.0,0.00033698,3]
[310318672,1704471185303,-800.13,0.00033698,3]
[310318673,1704471185314,-500.0,0.00033698,3]
[310318674,1704471185323,-1387.56,0.00033698,3]
[310318675,1704471185332,-500.0,0.00033698,3]
[310318676,1704471185342,-626.55,0.00033698,3]
[310318677,1704471185352,-368.95618282,0.00033698,3]
[310318678,1704471185361,-1366.99,0.00033698,3]
[310318679,1704471185371,-797.63,0.00033698,3]
[310318680,1704471185381,-500.0,0.00033698,3]
[310318681,1704471185390,-396.43743696,0.00033698,3]
[310318682,1704471185400,-500.0,0.00033698,3]
[310318683,1704471185409,-500.0,0.00033698,3]
[310318684,1704471185419,-703.77,0.00033698,3]
[310318685,1704471185429,-500.0,0.00033698,3]
[310318686,1704471185438,-581.02,0.00033698,3]
[310318687,1704471185448,-1360.29,0.00033698,3]
[310318688,1704471185457,-192.15648566,0.00033698,3]
[310318689,1704471185467,-500.0,0.00033698,3]
[310318690,1704471185476,-531.42,0.00033698,3]
[310318691,1704471185486,-700.18,0.00033698,3]
[310318692,1704471185496,-500.0,0.00033698,3]
[310318693,1704471185505,-500.0,0.00033698,3]
[310318694,1704471185515,-1036.76,0.00033698,3]
[310318695,1704471185619,-962.57,0.00033698,3]
[310318696,1704471185628,-1289.38,0.00033698,3]
[310318697,1704471185638,-813.88,0.00033698,3]
[310318698,1704471185648,-4950.03,0.00033698,3]
[310318699,1704471185657,-500.0,0.00033698,3]
[310318700,1704471185667,-500.0,0.00033698,3]
[310318701,1704471185677,-734.2,0.00033698,3]
[310318702,1704471185686,-500.0,0.00033698,3]
[310318703,1704471185696,-712.3,0.00033698,3]
[310318704,1704471185705,-573.47,0.00033698,3]
[310318705,1704471185715,-834.43,0.00033698,3]
[310318706,1704471185725,-1459.15,0.00033698,3]
[310318707,1704471185734,-753.46,0.00033698,3]
[310318708,1704471185744,-325.4084269,0.00033698,3]
[310318709,1704471185754,-1169.4,0.00033698,3]
[310318710,1704471185764,-564.11,0.00033698,3]
[310318711,1704471185773,-598.84,0.00033698,3]
[310318712,1704471185783,-1096.24,0.00033698,3]
[310318713,1704471185792,-1425.41,0.00033698,3]
[310318714,1704471185802,-500.0,0.00033698,3]
[310318715,1704471185812,-6105.28,0.00033698,3]
[310318716,1704471185824,-2530.93,0.00033698,3]
[310318717,1704471185834,-500.0,0.00033698,3]
[310318718,1704471185844,-506.75537173,0.00033698,3]
[310318719,1704471185854,-820.35,0.00033698,3]
[310318720,1704471185865,-1820.15,0.00033698,3]
[310318721,1704471185875,-599.26425096,0.00033698,3]
[310318722,1704471185885,-1454.88,0.00033698,3]
[310318723,1704471185896,-848.25,0.00033698,3]
[310318724,1704471185906,-500.0,0.00033698,3]
[310318725,1704471185916,-3529.52,0.00033698,3]
[310318726,1704471185926,-1261.77,0.00033698,3]
[310318727,1704471185937,-500.0,0.00033698,3]
[310318728,1704471185947,-258.55053401,0.00033698,3]
[310318729,1704471185956,-522.36,0.00033698,3]
[310318730,1704471185966,-673.04,0.00033698,3]
[310318731,1704471185976,-500.0,0.00033698,3]
[310318732,1704471185986,-1294.63,0.00033698,3]
[310318733,1704471185995,-1207.05,0.00033698,3]
[310318734,1704471186004,-543.14,0.00033698,3]
[310318735,1704471186016,-806.5,0.00033698,3]
[310318736,1704471186026,-2710.43,0.00033698,3]
[310318737,1704471186036,-500.0,0.00033698,3]
[310318738,1704471186045,-731.44,0.00033698,3]
[310318739,1704471186055,-500.0,0.00033698,3]
[310318740,1704471186065,-212.87653633,0.00033698,3]
[310318741,1704471186076,-519.5,0.00033698,3]
[310318742,1704471186086,-2046.64,0.00033698,3]
[310318743,1704471186096,-762.26,0.00033698,3]
[310318744,1704471186106,-620.31,0.00033698,3]
[310318745,1704471186116,-1317.65,0.00033698,3]
[310318746,1704471186126,-5333.49,0.00033698,3]
[310318747,1704471186136,-978.21,0.00033698,3]
[310318748,1704471186146,-1254.61,0.00033698,3]
[310318749,1704471186156,-500.0,0.00033698,3]
[310318750,1704471186166,-802.02,0.00033698,3]
[310318751,1704471186175,-1336.26,0.00033698,3]
[310318752,1704471186185,-537.87,0.00033698,3]
[310318753,1704471186195,-500.0,0.00033698,3]
[310318754,1704471186205,-3771.03,0.00033698,3]
[310318755,1704471186214,-200.3178175,0.00033698,3]
[310318756,1704471186225,-525.81,0.00033698,3]
[310318757,1704471186235,-776.01,0.00033698,3]
[310318758,1704471186245,-3060.91,0.00033698,3]
[310318759,1704471186255,-13727.19,0.00033698,3]
[310318760,1704471186264,-1204.63,0.00033698,3]
[310318761,1704471186274,-523.90537198,0.00033698,3]
[310318762,1704471186284,-769.65,0.00033698,3]
[310318763,1704471186294,-537.11,0.00033698,3]
[310318764,1704471186303,-4626.56,0.00033698,3]
[310318765,1704471186314,-500.0,0.00033698,3]
[310318766,1704471186323,-1733.54,0.00033698,3]
[310318767,1704471186333,-3709.47,0.00033698,3]
[310318768,1704471186343,-3029.39,0.00033698,3]
[310318769,1704471186354,-9181.09,0.00033698,3]
[310318770,1704471186363,-5426.23,0.00033698,3]
[310318771,1704471186373,-740.27,0.00033698,3]
[310318772,1704471186383,-5834.39,0.00033698,3]
[310318773,1704471186393,-529.59202503,0.00033698,3]
[310318774,1704471186403,-799.71,0.00033698,3]
[310318775,1704471186413,-500.0,0.00033698,3]
[310318776,1704471186423,-500.0,0.00033698,3]
[310318777,1704471186432,-4345.18,0.00033698,3]
[310318778,1704471186443,-725.16,0.00033698,3]
[310318779,1704471186453,-30937.37,0.00033698,3]
[310318780,1704471186463,-821.62,0.00033698,3]
[310318781,1704471186473,-749.5,0.00033698,3]
[310318782,1704471186484,-675.77,0.00033698,3]
[310318783,1704471186494,-900.8,0.00033698,3]
[310318784,1704471186504,-699.84,0.00033698,3]
[310318785,1704471186514,-500.0,0.00033698,3]
[310318786,1704471186525,-500.0,0.00033698,3]
[310318787,1704471186534,-1420.61,0.00033698,3]
[310318788,1704471186544,-605.12,0.00033698,3]
[310318789,1704471186554,-809.12,0.00033698,3]
[310318790,1704471186564,-1182.33,0.00033698,3]
[310318791,1704471186574,-500.0,0.00033698,3]
[310318792,1704471186583,-3777.28,0.00033698,3]
[310318793,1704471186594,-571.4,0.00033698,3]
[310318794,1704471186604,-500.0,0.00033698,3]
[310318795,1704471186614,-1058.15,0.00033698,3]
[310318796,1704471186624,-830.16,0.00033698,3]
[310318797,1704471186634,-2249.97,0.00033698,3]
[310318798,1704471186644,-328.44216168,0.00033698,3]
[310318799,1704471186653,-1921.66,0.00033698,3]
[310318800,1704471186664,-1277.02,0.00033698,3]
[310318801,1704471186674,-1078.96,0.00033698,3]
[310318802,1704471186684,-2596.11,0.00033698,3]
[310318803,1704471186694,-652.62,0.00033698,3]
[310318804,1704471186704,-500.0,0.00033698,3]
[310318805,1704471186713,-915.92,0.00033698,3]
[310318806,1704471186723,-500.0,0.00033698,3]
[310318807,1704471186732,-327.89179988,0.00033698,3]
[310318808,1704471186741,-1916.84,0.00033698,3]
[310318809,1704471186751,-582.86,0.00033698,3]
[310318810,1704471186761,-790.64,0.00033698,3]
[310318811,1704471186770,-500.0,0.00033698,3]
[310318812,1704471186779,-3952.46,0.00033698,3]
[310318813,1704471186789,-500.0,0.00033698,3]
[310318814,1704471186799,-4595.39,0.00033698,3]
[310318815,1704471186810,-230.35925845,0.00033698,3]
[310318816,1704471186820,-756.94,0.00033698,3]
[310318817,1704471186829,-1252.88,0.00033698,3]
[310318818,1704471186839,-500.0,0.00033698,3]
[310318819,1704471186848,-717.12,0.00033698,3]
[310318820,1704471186858,-964.19,0.00033698,3]
[310318821,1704471186867,-500.0,0.00033698,3]
[310318822,1704471186876,-1622.29,0.00033698,3]
[310318823,1704471186886,-511.35,0.00033698,3]
[310318824,1704471186896,-177.40149904,0.00033698,3]
[310318825,1704471186905,-1254.57,0.00033698,3]
[310318826,1704471186914,-6081.11,0.00033698,3]
[310318827,1704471186925,-1984.28,0.00033698,3]
[310318828,1704471186935,-2229.13,0.00033698,3]
[310318829,1704471186945,-629.9,0.00033698,3]
[310318830,1704471186955,-730.24,0.00033698,3]
[310318831,1704471186964,-529.0,0.00033698,3]
[310318832,1704471186973,-839.46,0.00033698,3]
[310318833,1704471186983,-1375.91,0.00033698,3]
[310318834,1704471186993,-500.0,0.00033698,3]
[310318835,1704471187002,-11940.29,0.00033698,3]
[310318836,1704471187012,-1622.69,0.00033698,3]
[310318837,1704471187022,-5893.72,0.00033698,3]
[310318838,1704471187032,-2605.01,0.00033698,3]
[310318839,1704471187042,-1045.96,0.00033698,3]
[310318840,1704471187052,-500.0,0.00033698,3]
[310318841,1704471187063,-152.02323013,0.00033698,3]
[310318842,1704471187073,-500.0,0.00033698,3]
[310318843,1704471187083,-608.68,0.00033698,3]
[310318844,1704471187093,-7863.2,0.00033698,3]
[310318845,1704471187402,-713.7,0.00033698,3]
[310318846,1704471187414,-381.78,0.00033698,3]
[310318847,1704471187424,-2294.09,0.00033698,3]
[310318848,1704471187434,-543.11,0.00033698,3]
[310318849,1704471187444,-3601.71,0.00033698,3]
[310318850,1704471187454,-647.48,0.00033698,3]
[310318851,1704471187464,-500.0,0.00033698,3]
[310318852,1704471187474,-1603.38,0.00033698,3]
[310318853,1704471187483,-500.0,0.00033698,3]
[310318854,1704471187493,-1192.53,0.00033698,3]
[310318855,1704471187503,-618.49,0.00033698,3]
[310318856,1704471187512,-2938.06,0.00033698,3]
[310318857,1704471187521,-1744.78,0.00033698,3]
[310318858,1704471187531,-666.36,0.00033698,3]
[310318859,1704471187541,-770.23,0.00033698,3]
[310318860,1704471187551,-2064.43,0.00033698,3]
[310318861,1704471187561,-5976.75,0.00033698,3]
[310318862,1704471187570,-526.45,0.00033698,3]
[310318863,1704471187580,-554.78,0.00033698,3]
[310318864,1704471187590,-770.2,0.00033698,3]
[310318865,1704471187600,-5218.54,0.00033698,3]
[310318866,1704471187609,-1624.24,0.00033698,3]
[310318867,1704471187618,-500.0,0.00033698,3]
[310318868,1704471187627,-650.01,0.00033698,3]
[310318869,1704471187637,-505.46,0.00033698,3]
[310318870,1704471187646,-184.69339287,0.00033698,3]
[310318871,1704471187656,-657.7,0.00033698,3]
[310318872,1704471187666,-500.0,0.00033698,3]
[310318873,1704471187675,-2564.8,0.00033698,3]
[310318874,1704471187685,-912.23,0.00033698,3]
[310318875,1704471187694,-733.59,0.00033698,3]
[310318876,1704471187704,-701.65,0.00033698,3]
[310318877,1704471187713,-1151.0,0.00033698,3]
[310318878,1704471187723,-788.16,0.00033698,3]
[310318879,1704471187732,-500.0,0.00033698,3]
[310318880,1704471187742,-240.28,0.00033698,3]
[310318881,1704471187752,-1833.74,0.00033698,3]
[310318882,1704471187762,-1286.65,0.00033698,3]
[310318883,1704471187771,-1365.11,0.00033698,3]
[310318884,1704471187780,-1004.41,0.00033698,3]
[310318885,1704471187789,-1188.06,0.00033698,3]
[310318886,1704471187799,-500.0,0.00033698,3]
[310318887,1704471187808,-500.0,0.00033698,3]
[310318888,1704471187818,-500.0,0.00033698,3]
[310318889,1704471187829,-500.0,0.00033698,3]
[310318890,1704471187840,-889.44,0.00033698,3]
[310318891,1704471187849,-718.53,0.00033698,3]
[310318892,1704471187859,-1229.01,0.00033698,3]
[310318893,1704471187869,-799.46,0.00033698,3]
[310318894,1704471187878,-2168.33,0.00033698,3]
[310318895,1704471187888,-1007.17,0.00033698,3]
[310318896,1704471187897,-500.0,0.00033698,3]
[310318897,1704471187907,-1440.65,0.00033698,3]
[310318898,1704471187919,-1492.25,0.00033698,3]
[310318899,1704471187929,-1310.28,0.00033698,3]
[310318900,1704471187939,-1033.01,0.00033698,3]
[310318901,1704471187953,-500.0,0.00033698,3]
[310318902,1704471187986,-8762.76,0.00033698,3]
[310318903,1704471187996,-1037.25,0.00033698,3]
[310318904,1704471188008,-1254.6,0.00033698,3]
[310318905,1704471188018,-500.0,0.00033698,3]
[310318906,1704471188028,-1235.07,0.00033698,3]
[310318907,1704471188039,-500.0,0.00033698,3]
[310318908,1704471188049,-500.0,0.00033698,3]
[310318909,1704471188060,-1231.65,0.00033698,3]
[310318910,1704471188070,-1175.89,0.00033698,3]
[310318911,1704471188080,-721.62,0.00033698,3]
[310318912,1704471188090,-2988.81,0.00033698,3]
[310318913,1704471188100,-1078.8,0.00033698,3]
[310318914,1704471188111,-500.0,0.00033698,3]
[310318915,1704471188121,-8593.4,0.00033698,3]
[310318916,1704471188132,-858.78,0.00033698,3]
[310318917,1704471188142,-500.0,0.00033698,3]
[310318918,1704471188152,-500.0,0.00033698,3]
[310318919,1704471188163,-508.85,0.00033698,3]
[310318920,1704471188173,-775.55,0.00033698,3]
[310318921,1704471188184,-13181.47,0.00033698,3]
[310318922,1704471188194,-2255.28,0.00033698,3]
[310318923,1704471188204,-1023.39,0.00033698,3]
[310318924,1704471188214,-500.0,0.00033698,3]
[310318925,1704471188224,-1387.79,0.00033698,3]
[310318926,1704471188234,-500.0,0.00033698,3]
[310318927,1704471188245,-507.25,0.00033698,3]
[310318928,1704471188256,-615.53,0.00033698,3]
[310318929,1704471188266,-500.0,0.00033698,3]
[310318930,1704471188276,-2939.6,0.00033698,3]
[310318931,1704471188285,-422.84850208,0.00033698,3]
[310318932,1704471188295,-500.0,0.00033698,3]
[310318933,1704471188305,-500.0,0.00033698,3]
[310318934,1704471188316,-534.68,0.00033698,3]
[310318935,1704471188326,-871.56,0.00033698,3]
[310318936,1704471188336,-735.74,0.00033698,3]
[310318937,1704471188346,-1299.1,0.00033698,3]
[310318938,1704471188356,-1104.41,0.00033698,3]
[310318939,1704471188367,-1102.46,0.00033698,3]
[310318940,1704471188377,-875.24,0.00033698,3]
[310318941,1704471188387,-2232.74,0.00033698,3]
[310318942,1704471188398,-500.0,0.00033698,3]
[310318943,1704471188407,-924.65,0.00033698,3]
[310318944,1704471188418,-500.0,0.00033698,3]
[310318945,1704471188428,-815.75,0.00033698,3]
[310318946,1704471188438,-545.72,0.00033698,3]
[310318947,1704471188448,-758.09,0.00033702,2]
[310318948,1704471188458,-153.84,0.0003379,2]
[310318949,1704471188467,-204.0,0.00033793,19]
[310318950,1704471188476,-787646.89089255,0.000338,2]
[310318951,1704471188485,-150.0,0.000338,22]
[310318952,1704471188495,-457064.0,0.0003387,4]
[310318953,1704471188505,-2000.0,0.000339,2]
[310318954,1704471188516,-500.0,0.00033972,3]
[310318955,1704471188526,-785.36,0.00033972,3]
[310318956,1704471188535,-500.0,0.00033972,3]
[310318957,1704471188545,-500.0,0.00033972,3]
[310318958,1704471188554,-1435.45,0.00033972,3]
[310318959,1704471188563,-500.0,0.00033972,3]
[310318960,1704471188573,-227.12525176,0.00033972,3]
[310318961,1704471188582,-764.34,0.00033972,3]
[310318962,1704471188591,-500.0,0.00033972,3]
[310318963,1704471188601,-749.93,0.00033972,3]
[310318964,1704471188610,-512.27,0.00033972,3]
[310318965,1704471188619,-500.0,0.00033972,3]
[310318966,1704471188628,-790.83,0.00033972,3]
[310318967,1704471188637,-500.0,0.00033972,3]
[310318968,1704471188645,-500.0,0.00033972,3]
[310318969,1704471188654,-654.72,0.00033972,3]
[310318970,1704471188663,-500.0,0.00033972,3]
[310318971,1704471188673,-529.81,0.00033972,3]
[310318972,1704471188682,-553.69,0.00033972,3]
[310318973,1704471188692,-500.0,0.00033972,3]
[310318974,1704471188701,-500.0,0.00033972,3]
[310318975,1704471188710,-500.0,0.00033972,3]
[310318976,1704471188720,-500.0,0.00033972,3]
[310318977,1704471188730,-990.19,0.00033972,3]
[310318978,1704471188739,-500.0,0.00033972,3]
[310318979,1704471188748,-500.0,0.00033972,3]
[310318980,1704471188757,-500.0,0.00033972,3]
[310318981,1704471188767,-849.23,0.00033972,3]
[310318982,1704471188775,-500.0,0.00033972,3]
[310318983,1704471188784,-500.0,0.00033972,3]
[310318984,1704471188793,-500.0,0.00033972,3]
[310318985,1704471188803,-581.39,0.00033972,3]
[310318986,1704471188813,-506.54211926,0.00033972,3]
[310318987,1704471188822,-500.0,0.00033972,3]
[310318988,1704471188832,-500.0,0.00033972,3]
[310318989,1704471188842,-500.0,0.00033972,3]
[310318990,1704471188854,-500.0,0.00033972,3]
[310318991,1704471188864,-760.0,0.00033972,3]
[310318992,1704471188874,-500.0,0.00033972,2]
[310318993,1704471188883,-671.05,0.00033972,3]
[310318994,1704471188893,-508.03,0.00033972,3]
[310318995,1704471188903,-500.0,0.00033972,3]
[310318996,1704471188912,-500.0,0.00033972,3]
[310318997,1704471188922,-500.0,0.00033972,3]
[310318998,1704471188931,-500.0,0.00033972,3]
[310318999,1704471188941,-500.0,0.00033972,3]
[310319000,1704471188951,-538.55,0.00033972,3]
[310319001,1704471188961,-979.16,0.00033972,3]
[310319002,1704471188971,-500.0,0.00033972,3]
[310319003,1704471188979,-583.20388813,0.00033972,3]
[310319004,1704471188988,-1145.26,0.00033972,3]
[310319005,1704471188999,-500.0,0.00033972,3]
[310319006,1704471189010,-702.19,0.00033972,3]
[310319007,1704471189020,-284.41294868,0.00033972,3]
[310319008,1704471189029,-176.03128675,0.00033972,3]
[310319009,1704471189039,-518.33,0.00033972,3]
[310319010,1704471189049,-500.0,0.00033972,3]
[310319011,1704471189059,-500.0,0.00033972,3]
[310319012,1704471189069,-500.0,0.00033972,3]
[310319013,1704471189079,-500.0,0.00033972,3]
[310319014,1704471189091,-563.5,0.00033972,3]
[310319015,1704471189101,-500.0,0.00033972,3]
[310319016,1704471189110,-501.69,0.00033972,3]
[310319017,1704471189120,-326.37631266,0.00033972,3]
[310319018,1704471189130,-621.07,0.00033972,3]
[310319019,1704471189139,-500.0,0.00033972,3]
[310319020,1704471189149,-500.0,0.00033972,3]
[310319021,1704471189159,-1784.64,0.00033972,3]
[310319022,1704471189170,-500.0,0.00033972,3]
[310319023,1704471189180,-500.0,0.00033972,3]
[310319024,1704471189189,-500.0,0.00033972,3]
[310319025,1704471189199,-1054.73,0.00033972,3]
[310319026,1704471189209,-710.67,0.00033972,3]
[310319027,1704471189218,-500.0,0.00033972,3]
[310319028,1704471189227,-500.0,0.00033972,3]
[310319029,1704471189237,-1300.33,0.00033972,3]
[310319030,1704471189246,-500.0,0.00033972,3]
[310319031,1704471189256,-576.89,0.00033972,3]
[310319032,1704471189265,-500.0,0.00033972,3]
[310319033,1704471189274,-500.0,0.00033972,3]
[310319034,1704471189284,-1069.2,0.00033972,3]
[310319035,1704471189293,-500.0,0.00033972,3]
[310319036,1704471189302,-500.0,0.00033972,3]
[310319037,1704471189312,-625.92,0.00033972,3]
[310319038,1704471189322,-587.12,0.00033972,3]
[310319039,1704471189331,-704.44,0.00033972,3]
[310319040,1704471189341,-500.0,0.00033972,3]
[310319041,1704471189350,-942.24,0.00033972,3]
[310319042,1704471189359,-500.0,0.00033972,3]
[310319043,1704471189369,-500.0,0.00033972,3]
[310319044,1704471189378,-1261.61,0.00033972,3]
[310319045,1704471189388,-1117.05,0.00033972,3]
[310319046,1704471189397,-500.0,0.00033972,3]
[310319047,1704471189406,-500.0,0.00033972,3]
[310319048,1704471189415,-565.76,0.00033972,3]
[310319049,1704471189424,-925.99,0.00033972,3]
[310319050,1704471189434,-500.0,0.00033972,3]
[310319051,1704471189443,-500.0,0.00033972,3]
[310319052,1704471189453,-688.58,0.00033972,3]
[310319053,1704471189463,-500.0,0.00033972,3]
[310319054,1704471189473,-858.46,0.00033972,3]
[310319055,1704471189483,-500.0,0.00033972,3]
[310319056,1704471189493,-500.0,0.00033972,3]
[310319057,1704471189502,-500.0,0.00033972,3]
[310319058,1704471189512,-1444.56,0.00033972,3]
[310319059,1704471189522,-500.0,0.00033972,3]
[310319060,1704471189531,-500.0,0.00033972,3]
[310319061,1704471189542,-563.9,0.00033972,3]
[310319062,1704471189553,-500.0,0.00033972,3]
[310319063,1704471189563,-709.45,0.00033972,3]
[310319064,1704471189573,-500.0,0.00033972,3]
[310319065,1704471189582,-500.0,0.00033972,3]
[310319066,1704471189591,-520.35,0.00033972,3]
[310319067,1704471189600,-855.3,0.00033972,3]
[310319068,1704471189609,-572.77288438,0.00033972,3]
[310319069,1704471189619,-500.0,0.00033972,3]
[310319070,1704471189628,-1959.68,0.00033972,3]
[310319071,1704471189638,-500.0,0.00033972,3]
[310319072,1704471189647,-610.92,0.00033972,3]
[310319073,1704471189656,-617.83,0.00033972,3]
[310319074,1704471189666,-1510.28,0.00033972,3]
[310319075,1704471189675,-500.0,0.00033972,3]
[310319076,1704471189684,-540.96,0.00033972,3]
[310319077,1704471189694,-618.06,0.00033972,3]
[310319078,1704471189703,-500.0,0.00033972,3]
[310319079,1704471189712,-1094.64,0.00033972,3]
[310319080,1704471189721,-656.56,0.00033972,3]
[310319081,1704471189730,-500.0,0.00033972,3]
[310319082,1704471189741,-1053.74,0.00033972,3]
[310319083,1704471189750,-1104.35,0.00033972,3]
[310319084,1704471189759,-500.0,0.00033972,3]
[310319085,1704471189768,-506.93,0.00033972,3]
[310319086,1704471189778,-994.79,0.00033972,3]
[310319087,1704471189883,-500.0,0.00033972,3]
[310319088,1704471189892,-976.12,0.00033972,3]
[310319089,1704471189902,-514.26,0.00033972,3]
[310319090,1704471189912,-572.06,0.00033972,3]
[310319091,1704471189922,-737.83,0.00033972,3]
[310319092,1704471189932,-1754.66,0.00033972,3]
[310319093,1704471189941,-647.46,0.00033972,3]
[310319094,1704471189951,-500.0,0.00033972,3]
[310319095,1704471189960,-614.06,0.00033972,3]
[310319096,1704471189969,-762.69,0.00033972,3]
[310319097,1704471189978,-672.73,0.00033972,3]
[310319098,1704471189987,-500.0,0.00033972,3]
[310319099,1704471189996,-553.22,0.00033972,3]
[310319100,1704471190005,-500.0,0.00033972,3]
[310319101,1704471190015,-1134.29,0.00033972,3]
[310319102,1704471190024,-539.04,0.00033972,3]
[310319103,1704471190033,-1649.86,0.00033972,3]
[310319104,1704471190042,-638.21226261,0.00033972,3]
[310319105,1704471190051,-835.39,0.00033972,3]
[310319106,1704471190061,-1069.61,0.00033972,3]
[310319107,1704471190071,-536.06,0.00033972,3]
[310319108,1704471190080,-628.4,0.00033972,3]
[310319109,1704471190090,-555.52,0.00033972,3]
[310319110,1704471190099,-1238.6,0.00033972,3]
[310319111,1704471190108,-500.0,0.00033972,3]
[310319112,1704471190117,-1117.69,0.00033972,3]
[310319113,1704471190126,-1268.87,0.00033972,3]
[310319114,1704471190136,-500.0,0.00033972,3]
[310319115,1704471190145,-500.0,0.00033972,3]
[310319116,1704471190154,-500.0,0.00033972,3]
[310319117,1704471190163,-778.95,0.00033972,3]
[310319118,1704471190173,-500.0,0.00033972,3]
[310319119,1704471190182,-500.0,0.00033972,3]
[310319120,1704471190191,-500.0,0.00033972,3]
[310319121,1704471190201,-500.16,0.00033972,3]
[310319122,1704471190210,-500.0,0.00033972,3]
[310319123,1704471190220,-500.0,0.00033972,3]
[310319124,1704471190229,-576.0,0.00033972,3]